fUSD/lending_fUSD_20260414
["ID","MTS","AMOUNT","RATE_DAILY","PERIOD"]
[420450966,1776098785619,-316.584469,0.00041096,120]
[420450967,1776098785900,-151.0,0.00041096,120]
[420450968,1776098786170,-1080.94773,0.00041096,120]
[420450969,1776098786309,-213.433236,0.00041096,120]
[420450970,1776098786481,-316.584469,0.00041096,120]
[420450971,1776098786647,-151.0,0.00041096,120]
[420450972,1776098786879,-1080.94773,0.00041096,120]
[420450973,1776098787042,-213.433236,0.00041096,120]
[420450974,1776098787204,-316.584469,0.00041096,120]
[420450975,1776098787359,-151.0,0.00041096,120]
[420450976,1776098787592,-1080.94773,0.00041096,120]
[420450977,1776098787787,-151.0,0.00041096,120]
[420450978,1776098788047,-151.0,0.00041096,120]
[420450979,1776098788213,-213.433236,0.00041096,120]
[420450980,1776098788371,-151.0,0.00041096,120]
[420450981,1776098788541,-316.584469,0.00041096,120]
[420450982,1776098788701,-1080.94773,0.00041096,120]
[420450983,1776098788847,-151.0,0.00041096,120]
[420450984,1776098789009,-151.0,0.00041096,120]
[420450985,1776098789158,-199.708415,0.00041096,120]
[420450986,1776098789327,-316.584469,0.00041096,120]
[420450987,1776098789522,-213.433236,0.00041096,120]
[420450988,1776098789680,-1080.94773,0.00041096,120]
[420450989,1776098789822,-162.245751,0.00041096,120]
[420450990,1776098789961,-151.0,0.00041096,120]
[420450991,1776098790112,-316.584469,0.00041096,120]
[420450992,1776098790267,-213.433236,0.00041096,120]
[420450993,1776098790414,-1080.94773,0.00041096,120]
[420450994,1776098790558,-151.0,0.00041096,120]
[420450995,1776098790703,-316.584472,0.00041096,120]
[420450996,1776098790851,-213.433236,0.00041096,120]
[420450997,1776098791015,-1080.94773,0.00041096,120]
[420450998,1776098791162,-151.0,0.00041096,120]
[420450999,1776098791345,-213.433236,0.00041096,120]
[420451000,1776098791491,-1080.94773,0.00041096,120]
[420451001,1776098791630,-151.0,0.00041096,120]
[420451002,1776098791781,-213.433236,0.00041096,120]
[420451003,1776098791930,-1080.94773,0.00041096,120]
[420451004,1776098792066,-151.0,0.00041096,120]
[420451005,1776098792215,-213.433236,0.00041096,120]
[420451006,1776098792396,-1080.94773,0.00041096,120]
[420451007,1776098792532,-151.0,0.00041096,120]
[420451008,1776098792676,-213.433236,0.00041096,120]
[420451009,1776098792822,-1080.94773,0.00041096,120]
[420451010,1776098792969,-217.584913,0.00041096,120]
[420451011,1776098793136,-213.433228,0.00041096,120]
[420451012,1776098793289,-1080.947725,0.00041096,120]
[420451013,1776098793428,-151.0,0.00041096,120]
[420451014,1776098793574,-218.360117,0.00041096,120]
[420451015,1776098793718,-151.0,0.00041096,120]
[420451016,1776098793885,-151.0,0.00041096,120]
[420451017,1776098794030,-151.0,0.00041096,120]
[420451018,1776098794191,-151.0,0.00041096,120]
[420451019,1776098794337,-757.769367,0.00041096,120]
[420451020,1776098795837,-162.995602,0.00041096,120]
[420451021,1776098796009,-757.769367,0.00041096,120]
[420451022,1776098796156,-757.769367,0.00041096,120]
[420451023,1776098796286,-173.731583,0.00041096,120]
[420451024,1776098796420,-757.769367,0.00041096,120]
[420451025,1776098796563,-173.731583,0.00041096,120]
[420451026,1776098796715,-757.769367,0.00041096,120]
[420451027,1776098796847,-173.731583,0.00041096,120]
[420451028,1776098796978,-757.769367,0.00041096,120]
[420451029,1776098797111,-173.731583,0.00041096,120]
[420451030,1776098797251,-173.731583,0.00041096,120]
[420451031,1776098797403,-757.769367,0.00041096,120]
[420451032,1776098797536,-173.731583,0.00041096,120]
[420451033,1776098797676,-757.769367,0.00041096,120]
[420451034,1776098797818,-173.731583,0.00041096,120]
[420451035,1776098797977,-757.769367,0.00041096,120]
[420451036,1776098798127,-173.731583,0.00041096,120]
[420451037,1776098798282,-757.769367,0.00041096,120]
[420451038,1776098798426,-757.769367,0.00041096,120]
[420451039,1776098798572,-173.731583,0.00041096,120]
[420451040,1776098798719,-757.769367,0.00041096,120]
[420451041,1776098798868,-173.731583,0.00041096,120]
[420451042,1776098799038,-757.769367,0.00041096,120]
[420451043,1776098799203,-173.731583,0.00041096,120]
[420451044,1776098799379,-151.0,0.00041096,120]
[420451045,1776098799545,-757.769367,0.00041096,120]
[420451046,1776098799690,-173.731583,0.00041096,120]
[420451047,1776098799839,-151.0,0.00041096,120]
[420451048,1776098799983,-173.731583,0.00041096,120]
[420451049,1776098800126,-757.769367,0.00041096,120]
[420451050,1776098800275,-211.154255,0.00041096,120]
[420451051,1776098800414,-757.769367,0.00041096,120]
[420451052,1776098800562,-173.731583,0.00041096,120]
[420451053,1776098800738,-757.769367,0.00041096,120]
[420451054,1776098800913,-173.731583,0.00041096,120]
[420451055,1776098801064,-757.769367,0.00041096,120]
[420451056,1776098801210,-173.731583,0.00041096,120]
[420451057,1776098801352,-757.769367,0.00041096,120]
[420451058,1776098801507,-173.731583,0.00041096,120]
[420451059,1776098801652,-757.769375,0.00041096,120]
[420451060,1776098801787,-173.731583,0.00041096,120]
[420451061,1776098801942,-173.731583,0.00041096,120]
[420451062,1776098802098,-173.731577,0.00041096,120]
[420451063,1776098802242,-151.0,0.00041096,120]
[420451064,1776098802386,-151.0,0.00041096,120]
[420451065,1776098802545,-151.0,0.00041096,120]
[420451066,1776098802701,-151.0,0.00041096,120]
[420451067,1776098802834,-151.0,0.00041096,120]
[420451068,1776098802977,-151.0,0.00041096,120]
[420451069,1776098803111,-151.0,0.00041096,120]
[420451070,1776098803245,-151.0,0.00041096,120]
[420451071,1776098803395,-151.0,0.00041096,120]
[420451072,1776098803545,-151.0,0.00041096,120]
[420451073,1776098803686,-167.431379,0.00041096,120]
[420451074,1776098803821,-151.0,0.00041096,120]
[420451075,1776098803963,-151.0,0.00041096,120]
[420451076,1776098804116,-5000000.0,0.000411,120]
[420451077,1776098804289,-353.94657303,0.000411,30]
[420451078,1776098804437,-162.0,0.00041174,120]
[420451079,1776098804578,-839.11,0.0004127,85]
[420451080,1776098804733,-200.0,0.00041379,120]
[420451081,1776098804894,-500.0,0.00041507,120]
[420451082,1776098805061,-1100.0,0.00041544,30]
[420451083,1776098805206,-203.85838449,0.00041574,120]
[420451084,1776098805374,-10324.0,0.000417,117]
[420451085,1776098805524,-500.0,0.00041843,120]
[420451086,1776098805669,-1135.98943204,0.0004191,120]
[420451087,1776098805823,-500.0,0.00041925,63]
[420451088,1776098805957,-19058.47589129,0.00042,120]
[420451089,1776098806099,-839.11,0.0004205,91]
[420451090,1776098806248,-1100.0,0.00042053,30]
[420451091,1776098806403,-170872.0,0.000423,60]
[420451092,1776098806548,-500.0,0.00042329,120]
[420451093,1776098806721,-245.0,0.00042466,120]
[420451094,1776098806903,-199.0,0.00042466,120]
[420451095,1776098807048,-200.0,0.00042479,120]
[420451096,1776098807344,-563.19,0.00042546,120]
[420451097,1776098807492,-1075.1,0.00042546,120]
[420451098,1776098807633,-4401.95,0.00042546,120]
[420451099,1776098807782,-1100.0,0.00042562,30]
[420451100,1776098807933,-250.0,0.00042687,100]
[420451101,1776098808070,-221.0,0.0004274,120]
[420451102,1776098808224,-839.11,0.0004283,96]
[420451103,1776098808369,-2425.98,0.00042875,30]
[420451104,1776098808510,-1606.27,0.00043,30]
[420451105,1776098808668,-350.59,0.00043,30]
[420451106,1776098808825,-4999.0,0.00043,120]
[420451107,1776098808997,-35356.28,0.00043,120]
[420451108,1776098809153,-4506.76,0.00043,120]
[420451109,1776098809298,-500.0,0.00043,120]
[420451110,1776098809463,-500.0,0.00043,120]
[420451111,1776098809611,-1100.0,0.00043071,30]
[420451112,1776098809768,-500.0,0.00043097,120]
[420451113,1776098809925,-203.85838449,0.0004314,120]
[420451114,1776098810075,-500.0,0.00043151,120]
[420451115,1776098810225,-500.0,0.00043182,68]
[420451116,1776098810365,-287.5,0.00043223,30]
[420451117,1776098810506,-250.0,0.00043329,115]
[420451118,1776098810661,-250.0,0.00043435,119]
[420451119,1776098810805,-250.0,0.00043452,120]
[420451120,1776098810965,-250.0,0.00043452,120]
[420451121,1776098811263,-250.0,0.00043452,120]
[420451122,1776098811427,-250.0,0.00043452,120]
[420451123,1776098811571,-36063.41,0.000435,120]
[420451124,1776098811720,-4596.89,0.000435,120]
[420451125,1776098811854,-500.0,0.00043562,60]
[420451126,1776098811991,-500.0,0.00043562,60]
[420451127,1776098812134,-204.60703617,0.00043562,60]
[420451128,1776098812312,-150.0,0.00043562,60]
[420451129,1776098812459,-150.0,0.00043562,60]
[420451130,1776098812602,-500.0,0.00043562,60]
[420451131,1776098812756,-150.0,0.00043562,60]
[420451132,1776098812891,-500.0,0.00043562,60]
[420451133,1776098813024,-150.0,0.00043562,60]
[420451134,1776098813183,-150.0,0.00043562,60]
[420451135,1776098813342,-500.0,0.00043562,60]
[420451136,1776098813496,-150.0,0.00043562,60]
[420451137,1776098813644,-200.0,0.00043562,60]
[420451138,1776098813797,-517.65259255,0.00043562,60]
[420451139,1776098813934,-200.0,0.00043579,120]
[420451140,1776098814077,-1100.0,0.00043581,120]
[420451141,1776098814235,-839.11,0.0004361,101]
[420451142,1776098814406,-182.0,0.00043625,120]
[420451143,1776098814545,-170872.0,0.0004365,60]
[420451144,1776098814690,-150.0,0.000437,120]
[420451145,1776098814843,-250.0,0.00043751,96]
[420451146,1776098814997,-207.23767426,0.00043753,120]
[420451147,1776098815155,-1000.0,0.000438,120]
[420451148,1776098815291,-1000.0,0.000438,120]
[420451149,1776098815447,-1000.0,0.000438,120]
[420451150,1776098815587,-341.05051559,0.00043836,120]
[420451151,1776098815726,-341.05051559,0.00043836,120]
[420451152,1776098815859,-341.05051559,0.00043836,120]
[420451153,1776098816001,-341.05051559,0.00043836,120]
[420451154,1776098816154,-341.05051559,0.00043836,120]
[420451155,1776098816306,-157.22747665,0.00043836,120]
[420451156,1776098816466,-157.22747665,0.00043836,120]
[420451157,1776098816611,-157.22747665,0.00043836,120]
[420451158,1776098816754,-157.22747665,0.00043836,120]
[420451159,1776098816907,-157.22747665,0.00043836,120]
[420451160,1776098817048,-150.0,0.00043862,120]
[420451161,1776098817193,-150.0,0.00043958,120]
[420451162,1776098817355,-500.0,0.00043973,120]
[420451163,1776098817497,-3200.0,0.00044,60]
[420451164,1776098817639,-36784.67,0.00044,120]
[420451165,1776098817792,-4688.84,0.00044,120]
[420451166,1776098817940,-1600.0,0.00044082,120]
[420451167,1776098818090,-700.0,0.00044082,120]
[420451168,1776098818239,-1100.0,0.0004409,120]
[420451169,1776098818399,-150.0,0.00044161,120]
[420451170,1776098818561,-150.0,0.00044332,120]
[420451171,1776098818716,-500.0,0.00044352,120]
[420451172,1776098818862,-150.0,0.00044381,120]
[420451173,1776098819008,-839.11,0.000444,106]
[420451174,1776098819162,-2247.08037622,0.00044475,120]
[420451175,1776098819306,-500.0,0.00044478,72]
[420451176,1776098819448,-500.0,0.00044499,120]
[420451177,1776098819609,-500.0,0.00044499,120]
[420451178,1776098819772,-500.0,0.00044499,120]
[420451179,1776098819912,-500.0,0.00044499,120]
[420451180,1776098820074,-500.0,0.00044499,120]
[420451181,1776098820233,-500.0,0.00044499,120]
[420451182,1776098820393,-500.0,0.00044499,120]
[420451183,1776098820548,-500.0,0.00044499,120]
[420451184,1776098820696,-500.0,0.00044499,120]
[420451185,1776098820849,-500.0,0.00044499,120]
[420451186,1776098820988,-500.0,0.00044499,120]
[420451187,1776098821134,-500.0,0.00044499,120]
[420451188,1776098821281,-500.0,0.00044499,120]
[420451189,1776098821443,-500.0,0.00044499,120]
[420451190,1776098821590,-500.0,0.00044499,120]
[420451191,1776098821743,-500.0,0.00044499,120]
[420451192,1776098821885,-500.0,0.00044499,120]
[420451193,1776098822020,-500.0,0.00044499,120]
[420451194,1776098822182,-500.0,0.00044499,120]
[420451195,1776098822335,-500.0,0.00044499,120]
[420451196,1776098822484,-500.0,0.00044499,120]
[420451197,1776098822637,-500.0,0.00044499,120]
[420451198,1776098822780,-500.0,0.00044499,120]
[420451199,1776098822925,-500.0,0.00044499,120]
[420451200,1776098823073,-500.0,0.00044499,120]
[420451201,1776098823243,-500.0,0.00044499,120]
[420451202,1776098823386,-531.94,0.00044499,120]
[420451203,1776098823529,-37520.37,0.000445,120]
[420451204,1776098823686,-4782.6,0.000445,120]
[420451205,1776098823866,-836.0,0.000445,120]
[420451206,1776098824020,-1600.0,0.0004463,120]
[420451207,1776098824172,-700.0,0.0004463,120]
[420451208,1776098824330,-200.0,0.00044679,120]
[420451209,1776098824482,-2533.64,0.0004469,120]
[420451210,1776098824627,-203.85838449,0.00044705,120]
[420451211,1776098824772,-500.0,0.00044795,120]
[420451212,1776098824937,-1000.0,0.000448,120]
[420451213,1776098825080,-1000.0,0.000448,120]
[420451214,1776098825230,-1000.0,0.000448,120]
[420451215,1776098825669,-1000.0,0.000448,120]
[420451216,1776098825814,-1012.8,0.000448,120]
[420451217,1776098825971,-2500.0,0.000448,120]
[420451218,1776098826118,-150.0,0.00044882,120]
[420451219,1776098826263,-2533.64,0.00044953,120]
[420451220,1776098826418,-150.0,0.00044983,120]
[420451221,1776098826576,-500.0,0.00045,120]
[420451222,1776098826731,-500.0,0.00045,120]
[420451223,1776098826906,-500.0,0.00045,120]
[420451224,1776098827063,-181.11708829,0.00045,120]
[420451225,1776098827214,-3000.0,0.00045,120]
[420451226,1776098827367,-170872.0,0.00045,60]
[420451227,1776098827520,-2000.0,0.00045,120]
[420451228,1776098827669,-607.38755771,0.00045,120]
[420451229,1776098827823,-614.52476914,0.00045,30]
[420451230,1776098827974,-38270.78,0.00045,120]
[420451231,1776098828122,-4878.27,0.00045,120]
[420451232,1776098828274,-83511.0,0.00045,120]
[420451233,1776098828442,-2500.0,0.00045,120]
[420451234,1776098828596,-2000.0,0.0004505,120]
[420451235,1776098828755,-2000.0,0.0004505,120]
[420451236,1776098828929,-2000.0,0.0004505,120]
[420451237,1776098829090,-2000.0,0.0004505,120]
[420451238,1776098829235,-2000.0,0.0004505,120]
[420451239,1776098829379,-382.17673938,0.00045054,90]
[420451240,1776098829536,-187.98,0.0004511,120]
[420451241,1776098829693,-1600.0,0.00045178,120]
[420451242,1776098829860,-700.0,0.00045178,120]
[420451243,1776098830011,-163.512,0.0004518,120]
[420451244,1776098830154,-839.11,0.0004518,109]
[420451245,1776098830310,-500.0,0.000452,30]
[420451246,1776098830462,-2500.0,0.000452,120]
[420451247,1776098830614,-262.95010333,0.00045205,120]
[420451248,1776098830771,-2533.64,0.00045217,120]
[420451249,1776098830920,-400.0,0.000453,120]
[420451250,1776098831061,-168.0351,0.000453,120]
[420451251,1776098831224,-163.512,0.0004537,120]
[420451252,1776098831395,-168.11,0.000454,89]
[420451253,1776098831567,-244.35,0.000454,89]
[420451254,1776098831728,-162.9,0.000454,89]
[420451255,1776098831900,-150.0,0.00045437,120]
[420451256,1776098832057,-526.87314779,0.00045454,120]
[420451257,1776098832212,-287.5,0.00045457,120]
[420451258,1776098832374,-11561.01337972,0.0004547,30]
[420451259,1776098832537,-5500000.0,0.0004547,30]
[420451260,1776098832690,-4919.54682805,0.00045478,120]
[420451261,1776098832850,-4919.54682805,0.00045478,120]
[420451262,1776098833021,-4919.54682805,0.00045478,120]
[420451263,1776098833188,-4919.54682805,0.00045478,120]
[420451264,1776098833363,-4919.54682805,0.00045478,120]
[420451265,1776098833530,-4919.54682805,0.00045478,120]
[420451266,1776098833681,-4919.54682804,0.00045478,120]
[420451267,1776098833827,-4919.54682804,0.00045478,120]
[420451268,1776098833965,-4919.54682804,0.00045478,120]
[420451269,1776098834128,-4919.54682804,0.00045478,120]
[420451270,1776098834275,-4919.54682804,0.00045478,120]
[420451271,1776098834421,-4919.54682804,0.00045478,120]
[420451272,1776098834579,-4919.54682804,0.00045478,120]
[420451273,1776098834718,-4919.54682804,0.00045478,120]
[420451274,1776098834857,-353.94657303,0.00045479,30]
[420451275,1776098835009,-11561.01337972,0.00045479,30]
[420451276,1776098835159,-11561.01337972,0.00045479,30]
[420451277,1776098835333,-500.0,0.00045479,120]
[420451278,1776098835474,-500.0,0.00045479,120]
[420451279,1776098835614,-500.0,0.00045479,120]
[420451280,1776098835771,-500.0,0.00045479,120]
[420451281,1776098835926,-500.0,0.00045479,120]
[420451282,1776098836087,-500.0,0.00045479,120]
[420451283,1776098836237,-500.0,0.00045479,120]
[420451284,1776098836391,-500.0,0.00045479,120]
[420451285,1776098836556,-500.0,0.00045479,120]
[420451286,1776098836710,-500.0,0.00045479,120]
[420451287,1776098836883,-500.0,0.00045479,120]
[420451288,1776098837027,-500.0,0.00045479,120]
[420451289,1776098837167,-500.0,0.00045479,120]
[420451290,1776098837321,-500.0,0.00045479,120]
[420451291,1776098837476,-2278.75,0.00045479,120]
[420451292,1776098837632,-500.0,0.00045479,120]
[420451293,1776098837786,-500.0,0.00045479,120]
[420451294,1776098837934,-500.0,0.00045479,120]
[420451295,1776098838094,-500.0,0.00045479,120]
[420451296,1776098838251,-2278.75,0.00045479,120]
[420451297,1776098838411,-500.0,0.00045479,120]
[420451298,1776098838564,-500.0,0.00045479,120]
[420451299,1776098838721,-500.0,0.00045479,120]
[420451300,1776098838872,-500.0,0.00045479,120]
[420451301,1776098839039,-500.0,0.00045479,120]
[420451302,1776098839194,-500.0,0.00045479,120]
[420451303,1776098839356,-500.0,0.00045479,120]
[420451304,1776098839535,-2278.75,0.00045479,120]
[420451305,1776098839706,-397.11557058,0.00045479,120]
[420451306,1776098840237,-500.0,0.00045479,120]
[420451307,1776098840422,-500.0,0.00045479,120]
[420451308,1776098840610,-500.0,0.00045479,120]
[420451309,1776098840780,-500.0,0.00045479,120]
[420451310,1776098840974,-500.0,0.00045479,120]
[420451311,1776098841162,-500.0,0.00045479,120]
[420451312,1776098841356,-500.0,0.00045479,120]
[420451313,1776098841550,-500.0,0.00045479,120]
[420451314,1776098841742,-2278.75,0.00045479,120]
[420451315,1776098841939,-500.0,0.00045479,120]
[420451316,1776098842145,-500.0,0.00045479,120]
[420451317,1776098842366,-500.0,0.00045479,120]
[420451318,1776098842570,-500.0,0.00045479,120]
[420451319,1776098842787,-2278.75,0.00045479,120]
[420451320,1776098843014,-500.0,0.00045479,120]
[420451321,1776098843238,-490.27776541,0.00045479,120]
[420451322,1776098843501,-500.0,0.00045479,120]
[420451323,1776098843755,-2278.75,0.00045479,120]
[420451324,1776098843979,-500.0,0.00045479,120]
[420451325,1776098844206,-500.0,0.00045479,120]
[420451326,1776098844440,-212.86678305,0.00045479,120]
[420451327,1776098844678,-2278.75,0.00045479,120]
[420451328,1776098844898,-500.0,0.00045479,120]
[420451329,1776098845155,-500.0,0.00045479,120]
[420451330,1776098845390,-500.0,0.00045479,120]
[420451331,1776098845679,-172.49365661,0.00045479,120]
[420451332,1776098845901,-500.0,0.00045479,120]
[420451333,1776098846126,-2278.75,0.00045479,120]
[420451334,1776098846349,-500.0,0.00045479,120]
[420451335,1776098846559,-500.0,0.00045479,120]
[420451336,1776098846788,-2278.75,0.00045479,120]
[420451337,1776098847030,-500.0,0.00045479,120]
[420451338,1776098847230,-500.0,0.00045479,120]
[420451339,1776098847456,-445.44628723,0.00045479,120]
[420451340,1776098847699,-2278.75,0.00045479,120]
[420451341,1776098847930,-500.0,0.00045479,120]
[420451342,1776098848149,-500.0,0.00045479,120]
[420451343,1776098848353,-2278.75,0.00045479,120]
[420451344,1776098848536,-500.0,0.00045479,120]
[420451345,1776098848729,-500.0,0.00045479,120]
[420451346,1776098848946,-500.0,0.00045479,120]
[420451347,1776098849139,-500.0,0.00045479,120]
[420451348,1776098849343,-2278.75,0.00045479,120]
[420451349,1776098849520,-572.75850431,0.00045479,120]
[420451350,1776098849691,-500.0,0.00045479,120]
[420451351,1776098849859,-500.0,0.00045479,120]
[420451352,1776098850030,-500.0,0.00045479,120]
[420451353,1776098850208,-500.0,0.00045479,120]
[420451354,1776098850379,-2278.75,0.00045479,120]
[420451355,1776098850545,-500.0,0.00045479,120]
[420451356,1776098850705,-851.5,0.00045479,120]
[420451357,1776098850858,-500.0,0.00045479,120]
[420451358,1776098851030,-500.0,0.00045479,120]
[420451359,1776098851187,-500.0,0.00045479,120]
[420451360,1776098851346,-851.5,0.00045479,120]
[420451361,1776098851506,-2278.75,0.00045479,120]
[420451362,1776098851695,-500.0,0.00045479,120]
[420451363,1776098851865,-500.0,0.00045479,120]
[420451364,1776098852020,-851.5,0.00045479,120]
[420451365,1776098852175,-500.0,0.00045479,120]
[420451366,1776098852322,-2278.86014349,0.00045479,120]
[420451367,1776098852470,-500.0,0.00045479,120]
[420451368,1776098852623,-500.0,0.00045479,120]
[420451369,1776098852790,-500.0,0.00045479,120]
[420451370,1776098852980,-500.0,0.00045479,120]
[420451371,1776098853263,-500.0,0.00045479,120]
[420451372,1776098853418,-851.5,0.00045479,120]
[420451373,1776098853572,-500.0,0.00045479,120]
[420451374,1776098853727,-500.0,0.00045479,120]
[420451375,1776098853898,-500.0,0.00045479,120]
[420451376,1776098854054,-851.5,0.00045479,120]
[420451377,1776098854201,-500.0,0.00045479,120]
[420451378,1776098854365,-500.0,0.00045479,120]
[420451379,1776098854538,-500.0,0.00045479,120]
[420451380,1776098854695,-500.0,0.00045479,120]
[420451381,1776098854844,-851.5,0.00045479,120]
[420451382,1776098854984,-500.0,0.00045479,120]
[420451383,1776098855132,-500.0,0.00045479,120]
[420451384,1776098855482,-500.0,0.00045479,120]
[420451385,1776098855641,-500.0,0.00045479,120]
[420451386,1776098855785,-851.5,0.00045479,120]
[420451387,1776098855925,-500.0,0.00045479,120]
[420451388,1776098856074,-500.0,0.00045479,120]
[420451389,1776098856241,-500.0,0.00045479,120]
[420451390,1776098856390,-500.0,0.00045479,120]
[420451391,1776098856535,-851.5,0.00045479,120]
[420451392,1776098856685,-517.21,0.00045479,120]
[420451393,1776098856831,-500.0,0.00045479,120]
[420451394,1776098856973,-500.0,0.00045479,120]
[420451395,1776098857123,-500.0,0.00045479,120]
[420451396,1776098857280,-851.5,0.00045479,120]
[420451397,1776098857464,-500.0,0.00045479,120]
[420451398,1776098857700,-500.0,0.00045479,120]
[420451399,1776098857848,-500.0,0.00045479,120]
[420451400,1776098857993,-500.0,0.00045479,120]
[420451401,1776098858138,-500.0,0.00045479,120]
[420451402,1776098858287,-851.5,0.00045479,120]
[420451403,1776098858436,-420.13272839,0.00045479,120]
[420451404,1776098858595,-500.0,0.00045479,120]
[420451405,1776098858757,-500.0,0.00045479,120]
[420451406,1776098858902,-851.5,0.00045479,120]
[420451407,1776098859092,-500.0,0.00045479,120]
[420451408,1776098859313,-500.0,0.00045479,120]
[420451409,1776098859479,-702.81,0.00045479,120]
[420451410,1776098859625,-851.5,0.00045479,120]
[420451411,1776098859773,-500.0,0.00045479,120]
[420451412,1776098859913,-500.0,0.00045479,120]
[420451413,1776098860060,-500.0,0.00045479,120]
[420451414,1776098860203,-702.81,0.00045479,120]
[420451415,1776098860351,-628.97491356,0.00045479,120]
[420451416,1776098860502,-851.5,0.00045479,120]
[420451417,1776098860656,-500.0,0.00045479,120]
[420451418,1776098860815,-500.0,0.00045479,120]
[420451419,1776098860973,-500.0,0.00045479,120]
[420451420,1776098861158,-851.5,0.00045479,120]
[420451421,1776098861378,-500.0,0.00045479,120]
[420451422,1776098861552,-500.0,0.00045479,120]
[420451423,1776098861692,-702.81,0.00045479,120]
[420451424,1776098861831,-553.65015114,0.00045479,120]
[420451425,1776098861970,-851.5,0.00045479,120]
[420451426,1776098862111,-500.0,0.00045479,120]
[420451427,1776098862258,-500.0,0.00045479,120]
[420451428,1776098862412,-702.81,0.00045479,120]
[420451429,1776098862575,-851.5,0.00045479,120]
[420451430,1776098862738,-500.0,0.00045479,120]
[420451431,1776098862915,-500.0,0.00045479,120]
[420451432,1776098863091,-702.81,0.00045479,120]
[420451433,1776098863268,-500.0,0.00045479,120]
[420451434,1776098863423,-851.5,0.00045479,120]
[420451435,1776098863576,-532.63,0.00045479,120]
[420451436,1776098863713,-500.0,0.00045479,120]
[420451437,1776098863854,-500.0,0.00045479,120]
[420451438,1776098863993,-500.0,0.00045479,120]
[420451439,1776098864150,-500.0,0.00045479,120]
[420451440,1776098864301,-702.81,0.00045479,120]
[420451441,1776098864457,-500.0,0.00045479,120]
[420451442,1776098864615,-532.63,0.00045479,120]
[420451443,1776098864816,-500.0,0.00045479,120]
[420451444,1776098865011,-851.5,0.00045479,120]
[420451445,1776098865163,-621.23665069,0.00045479,120]
[420451446,1776098865317,-500.0,0.00045479,120]
[420451447,1776098865473,-500.0,0.00045479,120]
[420451448,1776098865636,-702.81,0.00045479,120]
[420451449,1776098865780,-532.63,0.00045479,120]
[420451450,1776098865919,-851.5,0.00045479,120]
[420451451,1776098866076,-500.0,0.00045479,120]
[420451452,1776098866222,-500.0,0.00045479,120]
[420451453,1776098866371,-702.81,0.00045479,120]
[420451454,1776098866517,-532.63,0.00045479,120]
[420451455,1776098866682,-851.5,0.00045479,120]
[420451456,1776098866838,-500.0,0.00045479,120]
[420451457,1776098867005,-702.81,0.00045479,120]
[420451458,1776098867149,-500.0,0.00045479,120]
[420451459,1776098867296,-532.63,0.00045479,120]
[420451460,1776098867446,-851.5,0.00045479,120]
[420451461,1776098867597,-500.0,0.00045479,120]
[420451462,1776098867749,-702.81,0.00045479,120]
[420451463,1776098867897,-500.0,0.00045479,120]
[420451464,1776098868044,-532.63,0.00045479,120]
[420451465,1776098868228,-851.5,0.00045479,120]